fUST/lending_fUST_20260216
["ID","MTS","AMOUNT","RATE_DAILY","PERIOD"]
[405547132,1771187438640,-630.0,0.00019114,2]
[405547133,1771187438649,-630.0,0.00019114,2]
[405547134,1771187438659,-630.0,0.00019114,2]
[405547135,1771187438669,-630.0,0.00019114,2]
[405547136,1771187438678,-630.0,0.00019114,2]
[405547137,1771187438688,-630.0,0.00019114,2]
[405547138,1771187438698,-630.0,0.00019114,2]
[405547139,1771187438709,-630.0,0.00019114,2]
[405547140,1771187438719,-630.0,0.00019114,2]
[405547141,1771187438729,-630.0,0.00019114,2]
[405547142,1771187438739,-630.0,0.00019114,2]
[405547143,1771187438748,-630.0,0.00019114,2]
[405547144,1771187438758,-630.0,0.00019114,2]
[405547145,1771187438768,-630.0,0.00019114,2]
[405547146,1771187438777,-630.0,0.00019114,2]
[405547147,1771187438787,-630.0,0.00019114,2]
[405547148,1771187438796,-630.0,0.00019114,2]
[405547149,1771187438806,-630.0,0.00019114,2]
[405547150,1771187438815,-630.0,0.00019114,2]
[405547151,1771187438825,-630.0,0.00019114,2]
[405547152,1771187438834,-630.0,0.00019114,2]
[405547153,1771187438844,-630.0,0.00019114,2]
[405547154,1771187438854,-561.70870978,0.00019114,2]
[405547155,1771187438866,-220.173085,0.00019114,2]
[405547156,1771187438875,-389.38225918,0.00019114,2]
[405547157,1771187438885,-273.0,0.00019121,2]
[405547158,1771187438894,-273.0,0.00019136,2]
[405547159,1771187438904,-273.0,0.00019162,2]
[405547160,1771187438914,-273.42155445,0.00019176,2]
[405547161,1771187438923,-151.0,0.00019178,2]
[405547162,1771187438933,-151.0,0.00019178,2]
[405547163,1771187438943,-151.0,0.00019178,2]
[405547164,1771187438952,-151.0,0.00019178,2]
[405547165,1771187438962,-151.0,0.00019178,2]
[405547166,1771187438972,-151.0,0.00019178,2]
[405547167,1771187438982,-151.0,0.00019178,2]
[405547168,1771187438991,-151.0,0.00019178,2]
[405547169,1771187439001,-151.0,0.00019178,2]
[405547170,1771187439011,-151.0,0.00019178,2]
[405547171,1771187439020,-214.312159,0.00019178,2]
[405547172,1771187439030,-168.0,0.000192,2]
[405547173,1771187439040,-273.0,0.00019209,2]
[405547174,1771187439049,-273.0,0.00019231,2]
[405547175,1771187439062,-347.5771761,0.00019258,2]
[405547176,1771187439076,-273.0,0.00019269,2]
[405547177,1771187439089,-273.0,0.00019275,2]
[405547178,1771187439102,-276.83608759,0.00019334,2]
[405547179,1771187439115,-454.35,0.0001939,3]
[405547180,1771187439128,-227.18,0.0001939,3]
[405547181,1771187439140,-681.56,0.0001939,3]
[405547182,1771187439153,-6161.78173137,0.00019393,2]
[405547183,1771187439166,-23146.00347151,0.000194,2]
[405547184,1771187439180,-2160.886046,0.000194,2]
[405547185,1771187439195,-46459.11048249,0.000194,2]
[405547186,1771187439207,-165.19,0.000194,2]
[405547187,1771187439219,-168.95,0.000194,2]
[405547188,1771187439231,-500.0,0.00019405,2]
[405547189,1771187439243,-44935.1156571,0.00019406,2]
[405547190,1771187439263,-6352.11166021,0.00019406,2]
[405547207,1771187440504,-2484.23457872,0.00019406,2]
[405547208,1771187440560,-341.92,0.00019406,2]
[405547209,1771187440575,-5847.30000004,0.00019406,2]
[405547285,1771187443996,-853.14243624,0.00019406,2]
[405547286,1771187444009,-421.537,0.00019406,2]
[405547287,1771187444022,-806.99127554,0.00019406,2]
[405547291,1771187446189,-1126.83624947,0.00019406,2]
[405547297,1771187464387,158.30619502,0.00013699,2]
[405547298,1771187520460,-500.0,0.0001819,2]
[405547299,1771187520491,-500.0,0.0001819,2]
[405547300,1771187520522,-500.0,0.0001819,2]
[405547301,1771187520554,-500.0,0.0001819,2]
[405547302,1771187520584,-500.0,0.0001819,2]
[405547303,1771187520612,-38.04688357,0.00018761,2]
[405547304,1771187520625,-386.95311643,0.00018761,2]
[405547305,1771187520635,-113.04688357,0.00018761,2]
[405547306,1771187520650,-500.0,0.00018761,2]
[405547307,1771187520662,-500.0,0.00018761,2]
[405547308,1771187520674,-500.0,0.00018761,2]
[405547309,1771187520689,-500.0,0.00018761,2]
[405547310,1771187520700,-55.95311643,0.00018761,2]
[405547311,1771187520716,-369.04688357,0.00018761,2]
[405547317,1771187748699,2568.96,0.00015601,2]
[405547350,1771187952415,231.70557103,0.00013699,2]
[405547363,1771188069618,500.0,0.00013273,2]
[405547373,1771188129952,500.0,0.00013273,2]
[405547374,1771188130890,500.0,0.00013273,2]
[405547411,1771188306474,500.0,0.00013273,2]
[405547412,1771188311814,500.0,0.00013273,2]
[405547413,1771188311861,725.35356092,0.00013821,2]
[405547414,1771188311996,300.0,0.00013673,2]
[405547415,1771188313094,500.0,0.00013699,2]
[405547416,1771188313644,500.0,0.00013273,2]
[405547417,1771188314130,500.0,0.00013273,2]
[405547418,1771188314197,1000.0,0.00013821,2]
[405547419,1771188314250,514.23489615,0.00014368,2]
[405547421,1771188333228,621.47042859,0.00013273,2]
[405547428,1771188380195,502.01829135,0.00013699,2]
[405547429,1771188426511,300.0,0.00013673,2]
[405547430,1771188426576,300.0,0.00014221,2]
[405547431,1771188428075,500.0,0.00013273,2]
[405547432,1771188428122,220.23495117,0.00013821,2]
[405547442,1771188437323,-736.68963926,0.00016805,2]
[405547443,1771188437343,-244.18,0.00016975,2]
[405547444,1771188437364,-182.2389736,0.00016981,2]
[405547445,1771188437388,-151.0,0.00016986,5]
[405547446,1771188437407,-677.0,0.00017481,2]
[405547448,1771188437430,-233.36664853,0.00018293,7]
[405547449,1771188437452,-209.80326076,0.00018293,7]
[405547450,1771188437474,-168.0,0.00018513,2]
[405547451,1771188437496,-168.0,0.00018694,2]
[405547452,1771188437515,-201.0,0.0001876,2]
[405547454,1771188437535,-300.0,0.0001876,2]
[405547455,1771188437555,-634.0,0.00018761,2]
[405547456,1771188437574,-425.0,0.00018761,2]
[405547457,1771188437594,-431.55,0.00018761,2]
[405547458,1771188437614,-723.0,0.00018761,2]
[405547459,1771188437633,-186.383,0.00018761,2]
[405547461,1771188437653,-1567.92802689,0.00018902,2]
[405547462,1771188437676,-168.0,0.00018903,2]
[405547463,1771188437695,-127.84304201,0.00018914,2]
[405547516,1771188543850,500.0,0.00013273,2]
[405547517,1771188550561,314.14228189,0.00013273,2]
[405547518,1771188550667,181.18516871,0.00013699,2]
[405547519,1771188550693,135.62853645,0.00013699,2]
[405547524,1771188608567,202.16482637,0.00015068,2]
[405547525,1771188609995,391.14500463,0.00013273,2]
[405547526,1771188613696,6.69787629,0.00013273,2]
[405547527,1771188613721,493.30212371,0.00013273,2]
[405547528,1771188613758,526.15738283,0.00013821,2]
[405547529,1771188615537,500.0,0.00013699,2]
[405547530,1771188616497,500.0,0.00013699,2]
[405547531,1771188616553,504.37145005,0.00014247,2]
[405547532,1771188625846,500.0,0.00013699,2]
[405547533,1771188625881,527.46309752,0.00014247,2]
[405547585,1771188632594,-151.0,0.00016986,5]
[405547587,1771188632603,-743.20205712,0.00018928,2]
[405547589,1771188632612,-702.0,0.00018928,2]
[405547591,1771188632621,-168.0,0.00018978,2]
[405547593,1771188632631,-215.04198884,0.00018981,2]
[405547595,1771188632641,-300.0,0.00019012,2]
[405547597,1771188632650,-20069.52398683,0.00019016,2]
[405547600,1771188632661,-1271.49549556,0.00019016,2]
[405547602,1771188632674,-3435.08345444,0.00019016,2]
[405547604,1771188632685,-3941.8844678,0.00019016,2]
[405547606,1771188632695,-597.0,0.00019016,2]
[405547730,1771188638421,-150.0,0.00018741,2]
[405547731,1771188638432,-150.0,0.00018796,2]
[405547732,1771188638447,-225.88012486,0.00018851,2]
[405547733,1771188638457,-500.0,0.00019012,2]
[405547734,1771188638466,-500.0,0.00019012,2]
[405547735,1771188638478,-57.98664788,0.00019012,2]
[405547736,1771188638490,-442.01335212,0.00019012,2]
[405547737,1771188638499,-500.0,0.00019012,2]
[405547738,1771188638509,-500.0,0.00019012,2]
[405547739,1771188638518,-500.0,0.00019012,2]
[405547740,1771188638528,-500.0,0.00019012,2]
[405547741,1771188638537,-504.51920579,0.00019012,2]
[405547742,1771188638547,-500.0,0.00019012,2]
[405547743,1771188638557,-500.0,0.00019012,2]
[405547744,1771188638566,-500.0,0.00019012,2]
[405547745,1771188638575,-500.0,0.00019012,2]
[405547746,1771188638585,-500.0,0.00019012,2]
[405547747,1771188638594,-500.0,0.00019012,2]
[405547748,1771188638603,-500.0,0.00019012,2]
[405547749,1771188638613,-500.0,0.00019012,2]
[405547750,1771188638622,-500.0,0.00019012,2]
[405547751,1771188638632,-500.0,0.00019012,2]
[405547752,1771188638642,-500.0,0.00019012,2]
[405547753,1771188638651,-500.0,0.00019012,2]
[405547754,1771188638660,-500.0,0.00019012,2]
[405547755,1771188638669,-500.0,0.00019012,2]
[405547756,1771188638679,-500.0,0.00019012,2]
[405547757,1771188638688,-500.0,0.00019012,2]
[405547758,1771188638697,-93.84467188,0.00019012,2]
[405547765,1771188640660,-406.15532812,0.00019012,2]
[405547766,1771188640671,-45.13663182,0.00019012,2]
[405547767,1771188640682,-454.86336818,0.00019012,2]
[405547768,1771188640692,-500.0,0.00019012,2]
[405547769,1771188640702,-223.66442889,0.00019012,2]
[405547786,1771188643977,-13.20107095,0.00019012,2]
[405547788,1771188643988,-263.13450016,0.00019012,2]
[405547789,1771188643998,-500.0,0.00019012,2]
[405547790,1771188644008,-360.03312597,0.00019012,2]
[405547791,1771188644023,-139.96687403,0.00019012,2]
[405547792,1771188644032,-430.03312597,0.00019012,2]
[405547800,1771188646404,-69.96687403,0.00019012,2]
[405547801,1771188646414,-643.16486819,0.00019012,2]
[405547802,1771188646424,-500.0,0.00019012,2]
[405547803,1771188646436,-500.0,0.00019012,2]
[405547804,1771188646448,-500.0,0.00019012,2]
[405547805,1771188646457,-347.56625778,0.00019012,2]
[405547806,1771188646557,-62.11461977,0.00019012,2]
[405547807,1771188646567,-500.0,0.00019012,2]
[405547808,1771188646577,-500.0,0.00019012,2]
[405547809,1771188646587,-500.0,0.00019012,2]
[405547810,1771188646596,-497.24743149,0.00019012,2]
[405547813,1771188666698,210.44628504,0.00013273,2]
[405547814,1771188671131,500.0,0.00013699,2]
[405547815,1771188682354,500.0,0.00013699,2]
[405547816,1771188682390,1000.0,0.00014247,2]
[405547825,1771188984356,500.0,0.00013699,2]
[405547826,1771188984407,500.0,0.00014247,2]
[405547900,1771189540086,-568.37202507,0.00017245,2]
[405547903,1771189570592,324.31102256,0.00013273,2]
[405547904,1771189581017,274.22227614,0.00013273,2]
[405547905,1771189590881,273.62485742,0.00013273,2]
[405547906,1771189647139,-4852.48616167,0.00017073,2]
[405547907,1771189724410,215.49750269,0.00015601,2]
[405547908,1771189743335,648.48659925,0.00014247,2]
[405547909,1771189743364,500.0,0.00013699,2]
[405547910,1771189746976,608.27543567,0.00013699,2]
[405547911,1771189816245,511.64534676,0.00013699,2]
[405547912,1771189820293,14.4460003,0.00013273,2]
[405547913,1771189820314,485.5539997,0.00013273,2]
[405547914,1771189820346,4.4460003,0.00013821,2]
[405547915,1771189820374,995.5539997,0.00013821,2]
[405547916,1771189824190,500.0,0.00013273,2]
[405547917,1771189824236,500.0,0.00013821,2]
[405547932,1771189832431,-215.49750269,0.00016675,9]
[405547933,1771189832441,-1091.46847726,0.00016733,2]
[405547936,1771189832464,-1151.44664005,0.00016733,2]
[405547938,1771189832475,-1661.99898914,0.00016902,2]
[405547940,1771189832488,-583.60292919,0.00016902,2]
[405547942,1771189832498,-70.95523899,0.00017159,2]
[405547943,1771189832511,-118.57811536,0.00017159,2]
[405547944,1771189832521,-500.0,0.00017683,2]
[405547945,1771189832530,-500.0,0.00017683,2]
[405547946,1771189832541,-42.14696853,0.00017683,2]
[405547957,1771189838685,-457.85303147,0.00017683,2]
[405547958,1771189838694,-215.49750269,0.00017748,17]
[405547959,1771189838703,-300.0,0.0001776,2]
[405547960,1771189838712,-2870.8865815,0.00017761,2]
[405547961,1771189838720,-159.68214307,0.00018043,2]
[405547962,1771189838729,-312.48177652,0.00018158,2]
[405547963,1771189838738,-250.0,0.0001831,2]
[405547964,1771189838748,-425.0,0.00018706,2]
[405547965,1771189838757,-723.0,0.00018706,2]
[405547966,1771189838766,-186.383,0.00018706,2]
[405547967,1771189838776,-3045.20519681,0.00018706,2]
[405547968,1771189838785,-150.293,0.00018761,2]
[405547969,1771189838795,-150.0,0.00018761,2]
[405547970,1771189838808,-2169.0,0.00018761,2]
[405547971,1771189838817,-215.49750269,0.00018822,25]
[405547973,1771189838827,-500.0,0.00018921,2]
[405547974,1771189838836,-500.0,0.00018921,2]
[405547975,1771189838846,-500.0,0.00018921,2]
[405547976,1771189838856,-500.0,0.00018921,2]
[405547977,1771189838865,-500.0,0.00018921,2]
[405547978,1771189838876,-500.0,0.00018921,2]
[405547979,1771189838885,-500.0,0.00018921,2]
[405547980,1771189838895,-464.8312521,0.00018921,2]
[405547993,1771189845214,-35.1687479,0.00018921,2]
[405547994,1771189845223,-500.0,0.00018921,2]
[405547995,1771189845232,-271.82252764,0.00018921,2]
[405547996,1771189845243,-228.17747236,0.00018921,2]
[405547997,1771189845252,-500.0,0.00018921,2]
[405547998,1771189845261,-320.77252764,0.00018921,2]
[405547999,1771189845273,-179.22747236,0.00018921,2]
[405548000,1771189845282,-500.0,0.00018921,2]
[405548001,1771189845291,-283.85652595,0.00018921,2]
[405548002,1771189845300,-500.0,0.00018921,2]
[405548003,1771189845309,-500.0,0.00018921,2]
[405548004,1771189845318,-260.93848295,0.00018921,2]
[405548005,1771189845327,-500.0,0.00018921,2]
[405548006,1771189845336,-500.0,0.00018921,2]
[405548007,1771189845345,-252.30897825,0.00018921,2]
[405548008,1771189845356,-247.69102175,0.00018921,2]
[405548009,1771189845365,-149.19842263,0.00018921,2]
[405548030,1771189846511,-350.80157737,0.00018921,2]
[405548031,1771189846520,-500.0,0.00018921,2]
[405548032,1771189846529,-132.63269225,0.00018921,2]
[405548033,1771189846607,-367.36730775,0.00018921,2]
[405548034,1771189846616,-500.0,0.00018921,2]
[405548035,1771189846625,-500.0,0.00018921,2]
[405548036,1771189846635,-467.95172955,0.00018921,2]
[405548037,1771189846644,-500.0,0.00018921,2]
[405548038,1771189846655,-500.0,0.00018921,2]
[405548039,1771189846666,-500.0,0.00018921,2]
[405548040,1771189846675,-500.0,0.00018921,2]
[405548041,1771189846684,-500.0,0.00018921,2]
[405548042,1771189846694,-500.0,0.00018921,2]
[405548044,1771189846704,-500.0,0.00018921,2]
[405548045,1771189846714,-500.0,0.00018921,2]
[405548046,1771189846724,-500.0,0.00018921,2]
[405548047,1771189846733,-500.0,0.00018921,2]
[405548048,1771189846743,-500.0,0.00018921,2]
[405548049,1771189846752,-500.0,0.00018921,2]
[405548050,1771189846761,-500.0,0.00018921,2]
[405548051,1771189846771,-500.0,0.00018921,2]
[405548052,1771189846781,-500.0,0.00018921,2]
[405548053,1771189846791,-500.0,0.00018921,2]
[405548054,1771189846802,-500.0,0.00018921,2]
[405548055,1771189846818,-500.0,0.00018921,2]
[405548056,1771189846828,-500.0,0.00018921,2]
[405548057,1771189846838,-500.0,0.00018921,2]
[405548059,1771189846849,-500.0,0.00018921,2]
[405548060,1771189846858,-500.0,0.00018921,2]
[405548061,1771189846867,-500.0,0.00018921,2]
[405548062,1771189846878,-500.0,0.00018921,2]
[405548063,1771189846889,-500.0,0.00018921,2]
[405548064,1771189846899,-225.35552394,0.00018921,2]
[405548065,1771189846909,-159.33727898,0.00018921,2]
[405548066,1771189846918,-500.0,0.00018921,2]
[405548067,1771189846928,-500.0,0.00018921,2]
[405548068,1771189846939,-500.0,0.00018921,2]
[405548069,1771189846948,-500.0,0.00018921,2]
[405548070,1771189846957,-500.0,0.00018921,2]
[405548071,1771189846966,-500.0,0.00018921,2]
[405548072,1771189846976,-500.0,0.00018921,2]
[405548073,1771189846985,-500.0,0.00018921,2]
[405548074,1771189846995,-500.0,0.00018921,2]
[405548075,1771189847005,-500.0,0.00018921,2]
[405548076,1771189847016,-500.0,0.00018921,2]
[405548077,1771189847027,-500.0,0.00018921,2]
[405548078,1771189847038,-500.0,0.00018921,2]
[405548079,1771189847048,-500.0,0.00018921,2]
[405548080,1771189847058,-500.0,0.00018921,2]
[405548081,1771189847068,-500.0,0.00018921,2]
[405548082,1771189847079,-500.0,0.00018921,2]
[405548083,1771189847089,-500.0,0.00018921,2]
[405548084,1771189847100,-500.0,0.00018921,2]
[405548085,1771189847111,-500.0,0.00018921,2]
[405548086,1771189847120,-500.0,0.00018921,2]
[405548087,1771189847130,-500.0,0.00018921,2]
[405548088,1771189847140,-500.0,0.00018921,2]
[405548089,1771189847149,-743.20205712,0.00018922,2]
[405548090,1771189847159,-160.1119563,0.00019009,2]
[405548091,1771189847168,-5569.9623145,0.00019009,2]
[405548092,1771189847178,-273.0,0.00019009,2]
[405548093,1771189847188,-7749.67597873,0.00019016,2]
[405548094,1771189847201,-15495.0,0.00019016,2]
[405548095,1771189876277,500.0,0.00013699,2]
[405548096,1771189876323,1000.0,0.00014247,2]
[405548097,1771189876378,1000.0,0.00014795,2]
[405548098,1771189887820,300.0,0.00013673,2]
[405548099,1771189887849,600.0,0.00014221,2]
[405548100,1771189887885,300.0,0.00014768,2]
[405548103,1771189925444,500.0,0.00013273,2]
[405548104,1771189985404,515.39829676,0.00013699,2]
[405548105,1771190106958,500.0,0.00013273,2]
[405548106,1771190121899,536.82790516,0.00013699,2]
[405548125,1771190171620,500.0,0.00013273,2]
[405548137,1771190409461,544.14263066,0.00013699,2]
[405548142,1771190480302,500.0,0.00013273,2]
[405548149,1771190583132,206.32990251,0.00013273,2]
[405548170,1771190705760,500.0,0.00013699,2]
[405548171,1771190718030,552.85532759,0.00013273,2]
[405548183,1771190827151,-1151.00752291,0.00016224,2]
[405548184,1771190827173,-239.77663675,0.00016388,2]
[405548185,1771190827195,-150.71150075,0.00016438,2]
[405548186,1771190827218,-3041.41278019,0.00016694,2]
[405548203,1771191003960,500.0,0.00013699,2]
[405548204,1771191004013,120.16043422,0.00014247,2]
[405548205,1771191004032,73.49830369,0.00014247,2]
[405548206,1771191015160,363.83345217,0.00013699,2]
[405548231,1771191032190,-1664.19326787,0.00016527,2]
[405548232,1771191032203,-264.93289367,0.00016527,2]
[405548233,1771191032213,-197.26243102,0.00016738,2]
[405548234,1771191032223,-300.0,0.00017998,2]
[405548235,1771191032234,-500.0,0.00017999,2]
[405548236,1771191032245,-531.53961399,0.00017999,2]
[405548237,1771191032256,-247.26172488,0.00017999,2]
[405548238,1771191032267,-500.0,0.00017999,2]
[405548239,1771191032279,-500.0,0.00017999,2]
[405548240,1771191032292,-500.0,0.00017999,2]
[405548241,1771191032303,-500.0,0.00017999,2]
[405548242,1771191032313,-474.8012567,0.00017999,2]
[405548243,1771191032324,-500.0,0.00017999,2]
[405548244,1771191032335,-646.79517295,0.00017999,2]
[405548245,1771191032345,-256.97118899,0.00017999,2]
[405548246,1771191032355,-500.0,0.00017999,2]
[405548247,1771191032366,-500.0,0.00017999,2]
[405548248,1771191032377,-500.0,0.00017999,2]
[405548249,1771191032388,-500.0,0.00017999,2]
[405548250,1771191032398,-140.48859859,0.00017999,2]
[405548262,1771191040191,-359.51140141,0.00017999,2]
[405548263,1771191040200,-500.0,0.00017999,2]
[405548264,1771191040209,-500.0,0.00017999,2]
[405548265,1771191040219,-500.0,0.00017999,2]
[405548266,1771191040228,-500.0,0.00017999,2]
[405548267,1771191040237,-500.0,0.00017999,2]
[405548268,1771191040247,-500.0,0.00017999,2]
[405548269,1771191040255,-431.48859859,0.00018,2]
[405548270,1771191040266,-1137.72973541,0.00018,2]
[405548327,1771191043120,-4750.92811841,0.00018,2]
[405548330,1771191043131,-1274.16188159,0.00018,2]
[405548510,1771191045730,-4621.12530269,0.00018,2]
[405548511,1771191045846,-31565.99436822,0.00018,2]
[405548512,1771191045857,-13280.45272423,0.00018,2]
[405548522,1771191067057,52.66824414,0.00013273,2]
[405548523,1771191067096,226.13461792,0.00013273,2]
[405548524,1771191068527,500.0,0.00013699,2]
[405548525,1771191106941,416.98653103,0.0001725,2]
[405548526,1771191117413,-300.0,0.00017999,2]
[405548527,1771191117467,-316.77359744,0.00018,2]
[405548528,1771191127133,500.0,0.00013699,2]
[405548529,1771191127186,440.91853521,0.00014247,2]
[405548533,1771191146693,-300.0,0.00017999,2]
[405548534,1771191146735,-116.98653103,0.00018,2]
[405548536,1771191176025,-300.0,0.00018,2]
[405548539,1771191606440,500.0,0.00013699,2]
[405548540,1771191616134,500.0,0.00013273,2]
[405548543,1771191664235,352.90196617,0.00013699,2]
[405548544,1771191666315,500.0,0.00013273,2]
[405548545,1771191666372,1000.0,0.00013821,2]
[405548546,1771191666536,785.65541018,0.00014368,2]
[405548547,1771191731604,500.0,0.00013699,2]
[405548548,1771191731653,500.0,0.00014247,2]
[405548561,1771191784897,500.0,0.00013699,2]
[405548565,1771191903926,500.0,0.00013273,2]
[405548566,1771191903975,619.19543061,0.00013821,2]
[405548567,1771191910209,300.0,0.00013673,2]
[405548568,1771191915914,500.0,0.00013273,2]
[405548569,1771191915974,1000.0,0.00013821,2]
[405548570,1771191916024,1500.0,0.00014368,2]
[405548584,1771191966420,614.20020313,0.00013273,2]
[405548586,1771191978899,500.0,0.00013273,2]
[405548587,1771191978932,1000.0,0.00013821,2]
[405548588,1771192024415,500.0,0.00013273,2]
[405548589,1771192026619,500.0,0.00013273,2]
[405548590,1771192026674,1000.0,0.00013821,2]
[405548591,1771192027481,191.11703376,0.00013699,2]
[405548592,1771192051142,-192.79507144,0.00015684,2]
[405548593,1771192051164,-3954.88290713,0.00016181,2]
[405548594,1771192051188,-194.3247307,0.000163,2]
[405548595,1771192051209,-349.43473074,0.000163,2]
[405548596,1771192051229,-244.18,0.00016344,2]
[405548597,1771192051251,-210.23829726,0.00016427,2]
[405548598,1771192051273,-448.6268993,0.000167,2]
[405548599,1771192051293,-198.38590277,0.00017158,2]
[405548600,1771192051314,-356.73753036,0.00017158,2]
[405548601,1771192051334,-1255.74855149,0.00017473,2]
[405548602,1771192051354,-201.0,0.00017987,2]
[405548603,1771192051376,-10.35913076,0.00017987,2]
[405548606,1771192212349,683.21986917,0.00014247,2]
[405548607,1771192212369,316.78013083,0.00014247,2]
[405548608,1771192212556,173.21986917,0.00013699,2]
[405548609,1771192212579,326.78013083,0.00013699,2]
[405548610,1771192212603,261.22742231,0.00014795,2]
[405548611,1771192212628,238.77257769,0.00014795,2]
[405548612,1771192213059,314.14228189,0.00013273,2]
[405548613,1771192213180,500.0,0.00013699,2]
[405548614,1771192213217,1000.0,0.00014247,2]
[405548615,1771192213272,1000.0,0.00014795,2]
[405548616,1771192213648,509.02033208,0.00013699,2]
[405548648,1771192230850,181.18516871,0.00013699,2]
[405548653,1771192232322,-671.0,0.00017158,2]
[405548654,1771192232334,-241.01877218,0.00017158,2]
[405548655,1771192232345,-169.6497303,0.00017988,2]
[405548656,1771192232357,-130.3502697,0.00017988,2]
[405548657,1771192232367,-180.29012453,0.00017989,2]
[405548658,1771192232377,-151.0,0.00017989,2]
[405548659,1771192232388,-151.0,0.00017989,2]
[405548660,1771192232398,-151.0,0.00017989,2]
[405548661,1771192232409,-151.0,0.00017989,2]
[405548662,1771192232419,-151.0,0.00017989,2]
[405548663,1771192232430,-151.0,0.00017989,2]
[405548664,1771192232441,-151.0,0.00017989,2]
[405548665,1771192232452,-151.0,0.00017989,2]
[405548666,1771192232463,-151.0,0.00017989,2]
[405548667,1771192232473,-151.0,0.00017989,2]
[405548668,1771192232484,-151.0,0.00017989,2]
[405548669,1771192232494,-151.0,0.00017989,2]
[405548670,1771192232504,-953.76434389,0.00017989,2]
[405548672,1771192232517,-603.80455224,0.00017989,2]
[405548675,1771192232528,-500.0,0.00017999,2]
[405548678,1771192232538,-44.44095614,0.00017999,2]
[405548680,1771192236828,260.0,0.000154,120]
[405548835,1771192240343,-455.55904386,0.00017999,2]
[405548836,1771192240353,-294.08835255,0.00017999,2]
[405548837,1771192240362,-500.0,0.00017999,2]
[405548838,1771192240371,-2072.17328317,0.00018,2]
[405548839,1771192240411,-2652.6690678,0.00018,2]
[405548840,1771192240435,-495.840245,0.00018,2]
[405548867,1771192245991,-3753.577616,0.00018,2]
[405548871,1771192266349,326.76,0.00015,60]
[405548872,1771192267489,326.76,0.000148,120]
[405548873,1771192267684,500.0,0.00013699,2]
[405548874,1771192288762,500.0,0.00013699,2]
[405548875,1771192292209,275.05842136,0.00013273,2]
[405548883,1771192327721,500.0,0.00013699,2]
[405548894,1771192486102,393.52,0.000144,120]
[405548895,1771192503777,500.0,0.00013699,2]
[405548896,1771192503810,202.22382871,0.00014247,2]
[405548897,1771192503845,500.0,0.00013273,2]
[405548898,1771192503904,280.72455104,0.00013821,2]
[405548899,1771192503935,499.85531299,0.00013699,2]
[405548900,1771192503967,535.12053927,0.00013699,2]
[405548901,1771192504043,500.75058603,0.00013273,2]
[405548902,1771192504484,500.0,0.00013273,2]
[405548903,1771192504515,1000.0,0.00013821,2]
[405548904,1771192504548,1500.0,0.00014368,2]
[405548905,1771192504579,173.19877235,0.00014916,2]
[405548906,1771192506570,153.33640478,0.00013273,2]
[405548907,1771192506672,500.0,0.00013699,2]
[405548908,1771192506751,1000.0,0.00014247,2]
[405548909,1771192506790,947.18029031,0.00014795,2]
[405548910,1771192506876,160.69863384,0.00013699,2]
[405548911,1771192506910,500.0,0.00013273,2]
[405548912,1771192506962,500.0,0.00013273,2]